[Event "*** Titled Tuesday 3|2 Blitz"]
[Site "Chess.com"]
[Date "2016.06.07"]
[Round "1"]
[White "ChessWarrior7197"]
[Black "lukas_111111"]
[Result "1/2-1/2"]
[WhiteElo "2517"]
[BlackElo "2215"]
[TimeControl "180+2"]
[EndTime "11:13:19 PDT"]
[Termination "Game drawn by repetition"]

1. d4 {[%clk 0:03:00.4]} 1... Nf6 {[%clk 0:03:00]} 2. Bf4 {[%clk 0:02:57.9]}
2... g6 {[%clk 0:02:55.1]} 3. Nd2 {[%clk 0:02:57.6]} 3... Bg7 {[%clk 0:02:56.1]}
4. e4 {[%clk 0:02:57.8]} 4... O-O {[%clk 0:02:55.4]} 5. Ngf3 {[%clk 0:02:57]}
5... d5 {[%clk 0:02:52.9]} 6. e5 {[%clk 0:02:55.4]} 6... Ne4 {[%clk 0:02:53]} 7.
Bd3 {[%clk 0:02:53.1]} 7... Nxd2 {[%clk 0:02:48.1]} 8. Qxd2 {[%clk 0:02:53.5]}
8... c5 {[%clk 0:02:49.1]} 9. c3 {[%clk 0:02:54]} 9... Nc6 {[%clk 0:02:49.3]}
10. h3 {[%clk 0:02:44.9]} 10... cxd4 {[%clk 0:02:45.1]} 11. cxd4 {[%clk
0:02:45.7]} 11... Qb6 {[%clk 0:02:45.8]} 12. Bb1 {[%clk 0:02:39.7]} 12... Bd7
{[%clk 0:02:34.3]} 13. O-O {[%clk 0:02:40.3]} 13... Rac8 {[%clk 0:02:34.6]} 14.
Rd1 {[%clk 0:02:39.7]} 14... Qb4 {[%clk 0:02:16.7]} 15. Bd3 {[%clk 0:02:36]}
15... Qxd2 {[%clk 0:02:12.3]} 16. Bxd2 {[%clk 0:02:32.8]} 16... f6 {[%clk
0:02:08.5]} 17. exf6 {[%clk 0:02:32.6]} 17... Bxf6 {[%clk 0:02:04.4]} 18. Bc3
{[%clk 0:02:31.5]} 18... a6 {[%clk 0:01:57.5]} 19. Re1 {[%clk 0:02:32]} 19... b5
{[%clk 0:01:54.3]} 20. a3 {[%clk 0:02:33.1]} 20... e6 {[%clk 0:01:40.3]} 21. g3
{[%clk 0:02:27.2]} 21... Rb8 {[%clk 0:01:38.7]} 22. b4 {[%clk 0:02:22.4]} 22...
Rbc8 {[%clk 0:01:37.5]} 23. Kg2 {[%clk 0:02:22.5]} 23... Na5 {[%clk 0:01:35]}
24. Bb2 {[%clk 0:02:07]} 24... Nc4 {[%clk 0:01:32.5]} 25. Bc1 {[%clk 0:02:07.4]}
25... Bg7 {[%clk 0:01:25.4]} 26. Bf4 {[%clk 0:02:02.7]} 26... Nb2 {[%clk
0:01:24.9]} 27. Bb1 {[%clk 0:01:57.3]} 27... Rc3 {[%clk 0:01:24.4]} 28. Ne5
{[%clk 0:01:52]} 28... Bc8 {[%clk 0:01:03.5]} 29. Ba2 {[%clk 0:01:37.5]} 29...
Nd3 {[%clk 0:00:51.5]} 30. Nxd3 {[%clk 0:01:05.1]} 30... Rxd3 {[%clk 0:00:52.4]}
31. Be3 {[%clk 0:00:58.8]} 31... Bxd4 {[%clk 0:00:41.4]} 32. Bxd4 {[%clk
0:00:59.5]} 32... Rxd4 {[%clk 0:00:41.8]} 33. Re2 {[%clk 0:00:59]} 33... Bd7
{[%clk 0:00:37.1]} 34. Rc1 {[%clk 0:00:57.4]} 34... Rd3 {[%clk 0:00:30.6]} 35.
Rc7 {[%clk 0:00:56]} 35... Rf7 {[%clk 0:00:30.7]} 36. a4 {[%clk 0:00:53.7]}
36... bxa4 {[%clk 0:00:30.7]} 37. Ra7 {[%clk 0:00:54.3]} 37... Bb5 {[%clk
0:00:26.7]} 38. Ra8+ {[%clk 0:00:51.3]} 38... Kg7 {[%clk 0:00:27.1]} 39. Rc2
{[%clk 0:00:48.7]} 39... Rd1 {[%clk 0:00:25.5]} 40. g4 {[%clk 0:00:47.6]} 40...
Bf1+ {[%clk 0:00:24]} 41. Kh2 {[%clk 0:00:44.5]} 41... Rd3 {[%clk 0:00:22.5]}
42. g5 {[%clk 0:00:43.7]} 42... Rxh3+ {[%clk 0:00:22.2]} 43. Kg1 {[%clk
0:00:44.6]} 43... Bc4 {[%clk 0:00:08.5]} 44. Bxc4 {[%clk 0:00:46.1]} 44... dxc4
{[%clk 0:00:09.5]} 45. Rxc4 {[%clk 0:00:47.8]} 45... Rh5 {[%clk 0:00:10.3]} 46.
Rxa6 {[%clk 0:00:44.6]} 46... Rxg5+ {[%clk 0:00:10.6]} 47. Kf1 {[%clk
0:00:46.2]} 47... Rgf5 {[%clk 0:00:11.6]} 48. Rc2 {[%clk 0:00:47.2]} 48... Rf4
{[%clk 0:00:10.4]} 49. Rxa4 {[%clk 0:00:47]} 49... Rb7 {[%clk 0:00:11.3]} 50.
Rb2 {[%clk 0:00:48]} 50... h5 {[%clk 0:00:11.8]} 51. Kg2 {[%clk 0:00:48.8]}
51... Kf6 {[%clk 0:00:10.5]} 52. Kg3 {[%clk 0:00:48.2]} 52... g5 {[%clk
0:00:10.3]} 53. f3 {[%clk 0:00:42]} 53... h4+ {[%clk 0:00:10.5]} 54. Kg2 {[%clk
0:00:43.6]} 54... Rb5 {[%clk 0:00:09.2]} 55. Rb3 {[%clk 0:00:42.6]} 55... Rbf5
{[%clk 0:00:09.8]} 56. Raa3 {[%clk 0:00:38.3]} 56... Rb5 {[%clk 0:00:10.1]} 57.
Ra4 {[%clk 0:00:39.6]} 57... Rd5 {[%clk 0:00:11.4]} 58. Ra2 {[%clk 0:00:40.1]}
58... Rb5 {[%clk 0:00:12.3]} 59. Rab2 {[%clk 0:00:41.2]} 59... e5 {[%clk
0:00:10.8]} 60. Kh3 {[%clk 0:00:39]} 60... Kf5 {[%clk 0:00:11.1]} 61. Kg2 {[%clk
0:00:39.6]} 61... g4 {[%clk 0:00:11.1]} 62. fxg4+ {[%clk 0:00:40.7]} 62... Kxg4
{[%clk 0:00:12.2]} 63. Kh2 {[%clk 0:00:42.3]} 63... e4 {[%clk 0:00:11.3]} 64.
Rg2+ {[%clk 0:00:42.1]} 64... Kf5 {[%clk 0:00:09.6]} 65. Rg8 {[%clk 0:00:43.6]}
65... Rf3 {[%clk 0:00:09.8]} 66. Rf8+ {[%clk 0:00:40]} 66... Kg4 {[%clk
0:00:10]} 67. Rg8+ {[%clk 0:00:41.3]} 67... Kf4 {[%clk 0:00:10]} 68. Rf8+ {[%clk
0:00:36.1]} 68... Kg4 {[%clk 0:00:06.1]} 69. Rg8+ {[%clk 0:00:31.4]} 69... Kf4
{[%clk 0:00:03.4]} 70. Rb2 {[%clk 0:00:32.9]} 70... e3 {[%clk 0:00:03.6]} 71.
Rf8+ {[%clk 0:00:34.6]} 71... Ke4 {[%clk 0:00:04.7]} 72. Re8+ {[%clk 0:00:36.3]}
72... Kd3 {[%clk 0:00:05.5]} 73. Rb3+ {[%clk 0:00:37.4]} 73... Kd2 {[%clk
0:00:06]} 74. Rb2+ {[%clk 0:00:38.3]} 74... Kd3 {[%clk 0:00:07]} 75. Rb3+ {[%clk
0:00:37.2]} 75... Kd4 {[%clk 0:00:08.2]} 76. Rb2 {[%clk 0:00:33.2]} 76... Rf2+
{[%clk 0:00:08.1]} 77. Rxf2 {[%clk 0:00:34.1]} 77... exf2 {[%clk 0:00:09.5]} 78.
Kg2 {[%clk 0:00:31.9]} 78... Rf5 {[%clk 0:00:10]} 79. Kf1 {[%clk 0:00:32.8]}
79... h3 {[%clk 0:00:08.8]} 80. Rh8 {[%clk 0:00:33.3]} 80... Rf3 {[%clk
0:00:08.5]} 81. Rh4+ {[%clk 0:00:26.2]} 81... Kd5 {[%clk 0:00:06.9]} 82. Rh5+
{[%clk 0:00:25.8]} 82... Kc6 {[%clk 0:00:06.1]} 83. Rc5+ {[%clk 0:00:26.5]}
83... Kb6 {[%clk 0:00:06.7]} 84. Rh5 {[%clk 0:00:28.2]} 84... Kc6 {[%clk
0:00:07.1]} 85. Ra5 {[%clk 0:00:24.2]} 85... Kb6 {[%clk 0:00:04.6]} 86. Rh5
{[%clk 0:00:25.9]} 86... Kb7 {[%clk 0:00:04.4]} 87. Rh4 {[%clk 0:00:27.6]} 87...
Kc6 {[%clk 0:00:04.8]} 88. Rh5 {[%clk 0:00:29.5]} 88... Kb6 {[%clk 0:00:06]} 89.
Ra5 {[%clk 0:00:31]} 89... Rf4 {[%clk 0:00:05.5]} 90. Rh5 {[%clk 0:00:30.9]}
90... Rf3 {[%clk 0:00:06.1]} 91. b5 {[%clk 0:00:29.7]} 91... Kb7 {[%clk
0:00:03.9]} 92. Rg5 {[%clk 0:00:31.3]} 92... Kb6 {[%clk 0:00:04.7]} 93. Rh5
{[%clk 0:00:32.9]} 93... Ka5 {[%clk 0:00:03.3]} 94. Rd5 {[%clk 0:00:32.2]} 94...
Kb6 {[%clk 0:00:04.2]} 95. Rh5 {[%clk 0:00:33.8]} 1/2-1/2

[Event "*** Titled Tuesday 3|2 Blitz"]
[Site "Chess.com"]
[Date "2016.06.07"]
[Round "1"]
[White "kikydu96"]
[Black "akinov-akinseye"]
[Result "1-0"]
[WhiteElo "2369"]
[BlackElo "1685"]
[TimeControl "180+2"]
[EndTime "11:13:43 PDT"]
[Termination "kikydu96 won on time"]

1. e4 {[%clk 0:03:01.9]} 1... d5 {[%clk 0:02:58.2]} 2. exd5 {[%clk 0:03:02.6]}
2... Qxd5 {[%clk 0:02:58.8]} 3. Nc3 {[%clk 0:03:03.7]} 3... Qd6 {[%clk
0:02:59.3]} 4. d4 {[%clk 0:03:04.4]} 4... Nf6 {[%clk 0:02:59.6]} 5. Bd3 {[%clk
0:03:04.4]} 5... g6 {[%clk 0:03:00]} 6. Nge2 {[%clk 0:03:03.4]} 6... Bg7 {[%clk
0:03:00.5]} 7. Bf4 {[%clk 0:03:03.7]} 7... Qd8 {[%clk 0:03:00.6]} 8. O-O {[%clk
0:02:59.5]} 8... O-O {[%clk 0:03:00.8]} 9. Qd2 {[%clk 0:02:59.9]} 9... Re8
{[%clk 0:03:00.3]} 10. Rfe1 {[%clk 0:02:58]} 10... a6 {[%clk 0:02:59.8]} 11. h3
{[%clk 0:02:58.6]} 11... b5 {[%clk 0:03:00.1]} 12. a3 {[%clk 0:02:59.6]} 12...
Bb7 {[%clk 0:03:00.6]} 13. Rad1 {[%clk 0:03:00.8]} 13... e6 {[%clk 0:02:58.4]}
14. Bg5 {[%clk 0:02:56.1]} 14... Qd7 {[%clk 0:02:50.9]} 15. Qe3 {[%clk
0:02:42.5]} 15... Nd5 {[%clk 0:02:43.9]} 16. Nxd5 {[%clk 0:02:39.3]} 16... Qxd5
{[%clk 0:02:44.2]} 17. Nf4 {[%clk 0:02:40.3]} 17... Qxg5 {[%clk 0:02:40.6]} 18.
Be4 {[%clk 0:02:32.1]} 18... Bxe4 {[%clk 0:02:38.6]} 19. Qxe4 {[%clk 0:02:34]}
19... Nd7 {[%clk 0:02:37]} 20. g3 {[%clk 0:02:31.5]} 20... Nf6 {[%clk
0:02:31.4]} 21. Qf3 {[%clk 0:02:29.8]} 21... Nd5 {[%clk 0:02:29.5]} 22. Ng2
{[%clk 0:02:15.5]} 22... Qf5 {[%clk 0:02:28]} 23. Qe2 {[%clk 0:02:12]} 23...
Qxh3 {[%clk 0:02:28.1]} 24. b3 {[%clk 0:02:07.8]} 24... Nf6 {[%clk 0:02:28.3]}
25. Ne3 {[%clk 0:02:07]} 25... Qh5 {[%clk 0:02:20.8]} 26. g4 {[%clk 0:02:03.4]}
26... Qg5 {[%clk 0:02:14.4]} 27. Qf3 {[%clk 0:02:04.4]} 27... Nd5 {[%clk
0:02:11.9]} 28. Ng2 {[%clk 0:02:00.8]} 28... Qf6 {[%clk 0:02:04.1]} 29. Qg3
{[%clk 0:01:59.2]} 29... Rad8 {[%clk 0:02:00.5]} 30. c4 {[%clk 0:01:59.6]} 30...
bxc4 {[%clk 0:01:58]} 31. bxc4 {[%clk 0:01:56.9]} 31... Nb6 {[%clk 0:01:57]} 32.
Qxc7 {[%clk 0:01:57.6]} 32... Nc8 {[%clk 0:01:51.2]} 33. d5 {[%clk 0:01:38.8]}
33... exd5 {[%clk 0:01:49.3]} 34. cxd5 {[%clk 0:01:39.9]} 34... Rxe1+ {[%clk
0:01:49]} 35. Rxe1 {[%clk 0:01:41.8]} 35... Qd6 {[%clk 0:01:39.3]} 36. Qb7
{[%clk 0:01:37.6]} 36... Qxd5 {[%clk 0:01:38.3]} 37. Qxd5 {[%clk 0:01:39]} 37...
Rxd5 {[%clk 0:01:38.2]} 38. Re8+ {[%clk 0:01:40.5]} 38... Bf8 {[%clk 0:01:38.2]}
39. Rxc8 {[%clk 0:01:42.4]} 39... Ra5 {[%clk 0:01:36.8]} 40. Nf4 {[%clk
0:01:40.8]} 40... Rxa3 {[%clk 0:01:35.1]} 41. Nd5 {[%clk 0:01:41.6]} 41... Ra1+
{[%clk 0:01:32]} 42. Kg2 {[%clk 0:01:41.4]} 42... Kg7 {[%clk 0:01:32.8]} 43. g5
{[%clk 0:01:41.5]} 43... a5 {[%clk 0:01:31.5]} 44. Nf6 {[%clk 0:01:42.2]} 44...
a4 {[%clk 0:01:29.3]} 45. Ne8+ {[%clk 0:01:39.4]} 45... Kg8 {[%clk 0:01:28]} 46.
Nf6+ {[%clk 0:01:36.6]} 46... Kg7 {[%clk 0:01:28.5]} 47. Ra8 {[%clk 0:01:35]}
47... a3 {[%clk 0:01:29]} 48. Ne8+ {[%clk 0:01:27]} 48... Kg8 {[%clk 0:01:28.8]}
49. Nf6+ {[%clk 0:01:25.4]} 49... Kg7 {[%clk 0:01:29.3]} 50. Rc8 {[%clk
0:01:26.4]} 50... a2 {[%clk 0:01:24.4]} 51. Ra8 {[%clk 0:01:26.4]} 51... Rc1
{[%clk 0:01:03.2]} 52. Rxa2 {[%clk 0:01:26.5]} 52... Rc5 {[%clk 0:01:01.4]} 53.
f4 {[%clk 0:01:25.9]} 53... Rc4 {[%clk 0:00:56.8]} 54. Kf3 {[%clk 0:01:26.7]}
54... Be7 {[%clk 0:00:55.6]} 55. Nd5 {[%clk 0:01:24.3]} 55... Bd6 {[%clk
0:00:53.9]} 56. Ra6 {[%clk 0:01:13]} 56... Rd4 {[%clk 0:00:50.5]} 57. Rxd6
{[%clk 0:01:13]} 57... h6 {[%clk 0:00:51]} 58. Rd7 {[%clk 0:01:03.6]} 58... hxg5
{[%clk 0:00:49.7]} 59. fxg5 {[%clk 0:01:05.5]} 59... Rd3+ {[%clk 0:00:49.3]} 60.
Kf4 {[%clk 0:01:05.4]} 60... Rd1 {[%clk 0:00:48]} 61. Nf6 {[%clk 0:01:04.2]}
61... Rf1+ {[%clk 0:00:47.9]} 62. Ke4 {[%clk 0:01:03.5]} 62... Re1+ {[%clk
0:00:47.5]} 63. Kd5 {[%clk 0:01:01.6]} 63... Rd1+ {[%clk 0:00:46.7]} 64. Ke5
{[%clk 0:01:00.5]} 64... Re1+ {[%clk 0:00:46.7]} 65. Ne4 {[%clk 0:01:00.9]}
65... Rg1 {[%clk 0:00:39.6]} 66. Ra7 {[%clk 0:00:56.3]} 66... Rg2 {[%clk
0:00:39.1]} 67. Kf4 {[%clk 0:00:55.9]} 67... Rg1 {[%clk 0:00:38.6]} 68. Nd6
{[%clk 0:00:56.3]} 68... Rf1+ {[%clk 0:00:37.7]} 69. Ke3 {[%clk 0:00:57.1]}
69... Re1+ {[%clk 0:00:36.2]} 70. Kf3 {[%clk 0:00:58.4]} 70... Rf1+ {[%clk
0:00:35]} 71. Kg2 {[%clk 0:00:58.7]} 71... Rf4 {[%clk 0:00:35]} 72. Ne8+ {[%clk
0:00:56.7]} 72... Kf8 {[%clk 0:00:34.5]} 73. Nf6 {[%clk 0:00:57.7]} 73... Kg7
{[%clk 0:00:34.9]} 74. Ra8 {[%clk 0:00:58.1]} 74... Rxf6 {[%clk 0:00:26.5]} 75.
gxf6+ {[%clk 0:01:00]} 75... Kxf6 {[%clk 0:00:27.6]} 76. Kg3 {[%clk 0:00:53.8]}
76... g5 {[%clk 0:00:26.9]} 77. Kg4 {[%clk 0:00:54.4]} 77... Kg6 {[%clk
0:00:26.9]} 78. Ra6+ {[%clk 0:00:55.5]} 78... f6 {[%clk 0:00:27.6]} 79. Rb6
{[%clk 0:00:57]} 79... Kg7 {[%clk 0:00:20.7]} 80. Kf5 {[%clk 0:00:51.6]} 80...
g4 {[%clk 0:00:10.7]} 81. Rxf6 {[%clk 0:00:53.5]} 81... g3 {[%clk 0:00:09.7]}
82. Rg6+ {[%clk 0:00:49]} 1-0

[Event "*** Titled Tuesday 3|2 Blitz"]
[Site "Chess.com"]
[Date "2016.06.07"]
[Round "2"]
[White "Iball95"]
[Black "jcibarra"]
[Result "1/2-1/2"]
[WhiteElo "2471"]
[BlackElo "2656"]
[TimeControl "180+2"]
[EndTime "11:16:15 PDT"]
[Termination "Game drawn by agreement"]

1. e4 {[%clk 0:03:01.9]} 1... e5 {[%clk 0:02:59.4]} 2. Nf3 {[%clk 0:03:02.9]}
2... d6 {[%clk 0:03:00.8]} 3. d4 {[%clk 0:03:03.7]} 3... exd4 {[%clk 0:03:02.7]}
4. Nxd4 {[%clk 0:03:04.4]} 4... Nf6 {[%clk 0:03:04.2]} 5. Nc3 {[%clk 0:03:05.6]}
5... Be7 {[%clk 0:03:05.8]} 6. Be2 {[%clk 0:03:06.2]} 6... O-O {[%clk
0:03:06.9]} 7. O-O {[%clk 0:03:07.4]} 7... Re8 {[%clk 0:03:06.4]} 8. Re1 {[%clk
0:03:08.1]} 8... Bf8 {[%clk 0:03:07.5]} 9. Bf1 {[%clk 0:03:09.5]} 9... Nbd7
{[%clk 0:03:08.2]} 10. h3 {[%clk 0:03:09.8]} 10... c6 {[%clk 0:03:04.3]} 11. Nb3
{[%clk 0:03:04.8]} 11... a5 {[%clk 0:03:01.5]} 12. a4 {[%clk 0:03:05]} 12... g6
{[%clk 0:02:52.3]} 13. Bf4 {[%clk 0:03:06.1]} 13... Ne5 {[%clk 0:02:52.4]} 14.
Qd2 {[%clk 0:03:07.3]} 14... Qc7 {[%clk 0:02:50.5]} 15. Rad1 {[%clk 0:03:05.4]}
15... Be6 {[%clk 0:02:49.6]} 16. Nd4 {[%clk 0:02:58.3]} 16... Bd7 {[%clk
0:02:38.6]} 17. Bg3 {[%clk 0:02:41.5]} 17... Nh5 {[%clk 0:02:36.3]} 1/2-1/2

[Event "*** Titled Tuesday 3|2 Blitz"]
[Site "Chess.com"]
[Date "2016.06.07"]
[Round "2"]
[White "kikydu96"]
[Black "matej2221"]
[Result "0-1"]
[WhiteElo "2363"]
[BlackElo "2446"]
[TimeControl "180+2"]
[EndTime "11:16:38 PDT"]
[Termination "matej2221 won by checkmate"]

1. e4 {[%clk 0:03:01.9]} 1... e5 {[%clk 0:03:00.8]} 2. Nf3 {[%clk 0:03:02]} 2...
Nc6 {[%clk 0:03:02]} 3. Bc4 {[%clk 0:02:58.1]} 3... Bc5 {[%clk 0:03:02.8]} 4. c3
{[%clk 0:02:58.9]} 4... Nf6 {[%clk 0:03:03.8]} 5. d4 {[%clk 0:02:56.7]} 5...
exd4 {[%clk 0:03:05.7]} 6. cxd4 {[%clk 0:02:58.1]} 6... Bb4+ {[%clk 0:03:06.8]}
7. Bd2 {[%clk 0:02:59.5]} 7... Bxd2+ {[%clk 0:03:04.3]} 8. Nbxd2 {[%clk
0:03:00.4]} 8... d5 {[%clk 0:03:05.2]} 9. exd5 {[%clk 0:03:00.8]} 9... Nxd5
{[%clk 0:03:07.1]} 10. O-O {[%clk 0:02:59.9]} 10... O-O {[%clk 0:03:05.7]} 11.
Ne4 {[%clk 0:02:57.3]} 11... Bg4 {[%clk 0:03:02.6]} 12. Be2 {[%clk 0:02:53.5]}
12... Re8 {[%clk 0:02:48.7]} 13. Ng3 {[%clk 0:02:49.8]} 13... Nf4 {[%clk
0:02:45.9]} 14. Bb5 {[%clk 0:02:47.1]} 14... Qd5 {[%clk 0:02:07.5]} 15. Bxc6
{[%clk 0:02:46.7]} 15... Qxc6 {[%clk 0:02:03]} 16. Ne5 {[%clk 0:02:39.5]} 16...
Qxg2# {[%clk 0:02:02.9]} 0-1

[Event "*** Titled Tuesday 3|2 Blitz"]
[Site "Chess.com"]
[Date "2016.06.07"]
[Round "2"]
[White "josiwales"]
[Black "silverback96"]
[Result "0-1"]
[WhiteElo "2109"]
[BlackElo "2044"]
[TimeControl "180+2"]
[EndTime "11:17:48 PDT"]
[Termination "silverback96 won by resignation"]

1. e4 {[%clk 0:03:01]} 1... e6 {[%clk 0:03:01.1]} 2. d3 {[%clk 0:03:01.7]} 2...
d5 {[%clk 0:03:03]} 3. Qe2 {[%clk 0:03:02.6]} 3... Nc6 {[%clk 0:03:04.3]} 4. Nf3
{[%clk 0:03:01.3]} 4... Nf6 {[%clk 0:03:04.8]} 5. e5 {[%clk 0:03:02.1]} 5... Nd7
{[%clk 0:03:05.6]} 6. g3 {[%clk 0:03:03.5]} 6... f6 {[%clk 0:03:07.5]} 7. Bf4
{[%clk 0:03:02]} 7... fxe5 {[%clk 0:03:06.4]} 8. Nxe5 {[%clk 0:03:03]} 8...
Ndxe5 {[%clk 0:02:44]} 9. Bxe5 {[%clk 0:03:04.9]} 9... Nxe5 {[%clk 0:02:45.2]}
10. Qxe5 {[%clk 0:03:05.7]} 10... Qf6 {[%clk 0:02:43.3]} 11. f4 {[%clk 0:03:03]}
11... Bd6 {[%clk 0:02:39.4]} 12. Qxf6 {[%clk 0:03:01.1]} 12... gxf6 {[%clk
0:02:41.3]} 13. d4 {[%clk 0:03:01.9]} 13... O-O {[%clk 0:02:39.1]} 14. Bd3
{[%clk 0:03:02.3]} 14... e5 {[%clk 0:02:37.1]} 15. fxe5 {[%clk 0:03:02.4]} 15...
fxe5 {[%clk 0:02:39]} 16. c3 {[%clk 0:03:03.3]} 16... Bg4 {[%clk 0:02:26.5]} 17.
dxe5 {[%clk 0:03:02.2]} 17... Bxe5 {[%clk 0:02:26]} 18. Na3 {[%clk 0:02:49.3]}
18... Rae8 {[%clk 0:02:26.4]} 19. Kd2 {[%clk 0:02:44.7]} 19... Rf2+ {[%clk
0:02:27.2]} 20. Ke3 {[%clk 0:02:36.2]} 20... Bxg3+ {[%clk 0:02:22.8]} 21. Kd4
{[%clk 0:02:36.5]} 21... Be5+ {[%clk 0:02:20.9]} 22. Kc5 {[%clk 0:02:29.6]}
22... Bd6+ {[%clk 0:02:13.9]} 23. Kb5 {[%clk 0:02:28.6]} 23... Rxb2+ {[%clk
0:02:15.3]} 24. Ka4 {[%clk 0:02:20.6]} 24... Bd7+ {[%clk 0:02:16.1]} 25. Nb5
{[%clk 0:02:14.6]} 25... a6 {[%clk 0:02:14.2]} 26. Rhg1+ {[%clk 0:02:14.9]}
26... Kh8 {[%clk 0:02:14.5]} 27. Raf1 {[%clk 0:02:15]} 27... axb5+ {[%clk
0:02:15.6]} 0-1

[Event "*** Titled Tuesday 3|2 Blitz"]
[Site "Chess.com"]
[Date "2016.06.07"]
[Round "2"]
[White "WanderingPuppet"]
[Black "rookoco"]
[Result "0-1"]
[WhiteElo "2265"]
[BlackElo "2466"]
[TimeControl "180+2"]
[EndTime "11:18:09 PDT"]
[Termination "rookoco won by checkmate"]

1. e4 {[%clk 0:03:01.9]} 1... e6 {[%clk 0:03:00.8]} 2. d4 {[%clk 0:03:00.2]}
2... d5 {[%clk 0:03:01.9]} 3. e5 {[%clk 0:03:01.8]} 3... c5 {[%clk 0:03:01.6]}
4. c3 {[%clk 0:03:03.2]} 4... Bd7 {[%clk 0:03:02.8]} 5. Nf3 {[%clk 0:03:02.3]}
5... Qa5 {[%clk 0:03:03.7]} 6. Nbd2 {[%clk 0:03:01.9]} 6... cxd4 {[%clk
0:03:04.1]} 7. Nxd4 {[%clk 0:03:02.5]} 7... Nc6 {[%clk 0:03:04]} 8. N2b3 {[%clk
0:03:03.6]} 8... Qc7 {[%clk 0:03:04.1]} 9. f4 {[%clk 0:03:04.6]} 9... Nh6 {[%clk
0:03:04.1]} 10. Bd3 {[%clk 0:03:02.4]} 10... Be7 {[%clk 0:03:00.2]} 11. O-O
{[%clk 0:03:03.3]} 11... O-O {[%clk 0:03:01]} 12. Qe1 {[%clk 0:02:59.4]} 12...
Kh8 {[%clk 0:02:51.4]} 13. Bd2 {[%clk 0:02:59.4]} 13... f6 {[%clk 0:02:51.9]}
14. Rc1 {[%clk 0:02:35.8]} 14... fxe5 {[%clk 0:02:50.5]} 15. Nxc6 {[%clk
0:02:37.5]} 15... bxc6 {[%clk 0:02:47.8]} 16. fxe5 {[%clk 0:02:37.4]} 16... c5
{[%clk 0:02:49]} 17. Bxh6 {[%clk 0:02:31.6]} 17... gxh6 {[%clk 0:02:49.4]} 18.
Bc2 {[%clk 0:02:22]} 18... Rxf1+ {[%clk 0:02:48.7]} 19. Kxf1 {[%clk 0:02:23.8]}
19... Bg5 {[%clk 0:02:45.6]} 20. Kg1 {[%clk 0:02:02.5]} 20... Bxc1 {[%clk
0:02:44.7]} 21. Nxc1 {[%clk 0:02:02.2]} 21... Rf8 {[%clk 0:02:44.6]} 22. Qe3
{[%clk 0:01:58.6]} 22... Rf7 {[%clk 0:02:38.5]} 23. Nd3 {[%clk 0:01:55.8]} 23...
d4 {[%clk 0:02:39]} 24. Qxh6 {[%clk 0:01:50.3]} 24... Bb5 {[%clk 0:02:33.6]} 25.
Nf4 {[%clk 0:01:42.6]} 25... Qxe5 {[%clk 0:02:22.5]} 26. Ng6+ {[%clk 0:01:42.5]}
26... Kg8 {[%clk 0:02:21.8]} 27. Nxe5 {[%clk 0:01:44]} 27... Rf1# {[%clk
0:02:21.2]} 0-1

[Event "*** Titled Tuesday 3|2 Blitz"]
[Site "Chess.com"]
[Date "2016.06.07"]
[Round "2"]
[White "Elshan1985"]
[Black "Cruel_Yaro"]
[Result "1-0"]
[WhiteElo "2600"]
[BlackElo "2545"]
[TimeControl "180+2"]
[EndTime "11:19:23 PDT"]
[Termination "Elshan1985 won by resignation"]

1. Nf3 {[%clk 0:03:01.9]} 1... f5 {[%clk 0:02:35.9]} 2. c4 {[%clk 0:03:03.8]}
2... Nf6 {[%clk 0:02:36.3]} 3. g3 {[%clk 0:03:03.8]} 3... e6 {[%clk 0:02:37.2]}
4. Bg2 {[%clk 0:03:04.6]} 4... Be7 {[%clk 0:02:38]} 5. d4 {[%clk 0:03:06]} 5...
O-O {[%clk 0:02:39.2]} 6. O-O {[%clk 0:03:05.9]} 6... d5 {[%clk 0:02:40.6]} 7.
b3 {[%clk 0:02:59.1]} 7... c6 {[%clk 0:02:41.3]} 8. Ba3 {[%clk 0:03:00.2]} 8...
Bxa3 {[%clk 0:02:39.4]} 9. Nxa3 {[%clk 0:03:01.3]} 9... Qe7 {[%clk 0:02:39.6]}
10. Nc2 {[%clk 0:03:01.9]} 10... b6 {[%clk 0:02:40.7]} 11. Nce1 {[%clk
0:03:02.9]} 11... Bb7 {[%clk 0:02:41.2]} 12. Nd3 {[%clk 0:03:03.6]} 12... Nbd7
{[%clk 0:02:42.2]} 13. Qc2 {[%clk 0:03:01.3]} 13... c5 {[%clk 0:02:37.2]} 14.
Rac1 {[%clk 0:02:51.4]} 14... dxc4 {[%clk 0:02:34.7]} 15. Qxc4 {[%clk
0:02:51.1]} 15... Rfc8 {[%clk 0:02:31.1]} 16. Nf4 {[%clk 0:02:07.6]} 16... Nf8
{[%clk 0:02:19.7]} 17. dxc5 {[%clk 0:01:57.4]} 17... Rxc5 {[%clk 0:02:19.2]} 18.
Qb4 {[%clk 0:01:54.6]} 18... Rac8 {[%clk 0:02:18.4]} 19. Rxc5 {[%clk 0:01:52.5]}
19... Qxc5 {[%clk 0:02:13.7]} 20. Qa4 {[%clk 0:01:48.5]} 20... b5 {[%clk
0:02:09.5]} 21. Qa5 {[%clk 0:01:47.8]} 21... b4 {[%clk 0:02:05.7]} 22. Qxc5
{[%clk 0:01:46.5]} 22... Rxc5 {[%clk 0:02:06.3]} 23. Nd3 {[%clk 0:01:48]} 23...
Rb5 {[%clk 0:01:49.1]} 24. Nd4 {[%clk 0:01:42.1]} 24... Rb6 {[%clk 0:01:50]} 25.
Bxb7 {[%clk 0:01:42.7]} 25... Rxb7 {[%clk 0:01:51.1]} 26. Rc1 {[%clk 0:01:44.2]}
26... Nd5 {[%clk 0:01:51.8]} 27. Rc8 {[%clk 0:01:42.5]} 27... Kf7 {[%clk
0:01:51.4]} 28. Nc6 {[%clk 0:01:35.2]} 1-0

[Event "*** Titled Tuesday 3|2 Blitz"]
[Site "Chess.com"]
[Date "2016.06.07"]
[Round "2"]
[White "dretch"]
[Black "AndreyOstrovskiy"]
[Result "1-0"]
[WhiteElo "2597"]
[BlackElo "2442"]
[TimeControl "180+2"]
[EndTime "11:19:31 PDT"]
[Termination "dretch won by resignation"]

1. d4 {[%clk 0:03:01.9]} 1... Nf6 {[%clk 0:03:00.5]} 2. c4 {[%clk 0:03:03.2]}
2... e6 {[%clk 0:03:01.8]} 3. Nc3 {[%clk 0:03:04.4]} 3... Bb4 {[%clk 0:03:02.1]}
4. Qc2 {[%clk 0:03:05.8]} 4... O-O {[%clk 0:03:02.4]} 5. e4 {[%clk 0:03:07.2]}
5... d6 {[%clk 0:02:59.5]} 6. a3 {[%clk 0:03:07.7]} 6... Bxc3+ {[%clk
0:02:59.3]} 7. bxc3 {[%clk 0:03:09.6]} 7... e5 {[%clk 0:02:41.3]} 8. Bd3 {[%clk
0:03:09.7]} 8... b6 {[%clk 0:01:56.9]} 9. Ne2 {[%clk 0:03:09.2]} 9... Bb7 {[%clk
0:01:55.2]} 10. O-O {[%clk 0:03:08.9]} 10... Re8 {[%clk 0:01:53.5]} 11. Ng3
{[%clk 0:02:54.1]} 11... Nc6 {[%clk 0:01:46]} 12. f4 {[%clk 0:02:55.3]} 12...
exd4 {[%clk 0:01:46.6]} 13. Bb2 {[%clk 0:02:56.1]} 13... dxc3 {[%clk 0:01:43.8]}
14. Bxc3 {[%clk 0:02:53.8]} 14... Nd7 {[%clk 0:01:21.5]} 15. e5 {[%clk
0:02:43.9]} 15... g6 {[%clk 0:01:21]} 16. e6 {[%clk 0:02:40.8]} 16... Nc5 {[%clk
0:00:58.5]} 17. exf7+ {[%clk 0:02:36.4]} 17... Kxf7 {[%clk 0:00:59.6]} 18. f5
{[%clk 0:02:28.8]} 18... g5 {[%clk 0:00:57.4]} 19. f6 {[%clk 0:02:24.6]} 19...
Re3 {[%clk 0:00:20.7]} 20. Bxh7 {[%clk 0:02:23.8]} 20... Rxc3 {[%clk 0:00:20.6]}
21. Qg6+ {[%clk 0:02:23.5]} 21... Ke6 {[%clk 0:00:21.7]} 22. f7+ {[%clk
0:02:18.2]} 22... Kd7 {[%clk 0:00:22.2]} 23. f8=R {[%clk 0:02:17.4]} 23... Qxf8
{[%clk 0:00:22.8]} 24. Rxf8 {[%clk 0:02:18.5]} 24... Rxf8 {[%clk 0:00:24]} 25.
Qg7+ {[%clk 0:02:19.8]} 25... Ne7 {[%clk 0:00:22.9]} 26. Qxc3 {[%clk 0:02:13.8]}
1-0